[Event "Frauenbundesliga 2021-22"]
[Site "Germany"]
[Date "2022.04.10"]
[Round "8.1"]
[White "Paehtz, Elisabeth"]
[Black "Reizniece-Ozola, Dana"]
[Result "1/2-1/2"]
[ECO "E63"]
[WhiteElo "2507"]
[BlackElo "2283"]
[Annotator "TA"]
[PlyCount "76"]
[EventDate "2021.11.26"]
[EventType "team-tourn"]
[EventCountry "GER"]
[SourceTitle "playchess.com"]
[Source "ChessBase"]
[SourceQuality "1"]
[WhiteTeam "BAD"]
[BlackTeam "LOE"]
[WhiteTeamCountry "GER"]
[BlackTeamCountry "LAT"]
[TimeControl "40/5400+30:1800+30"]

{[%evp 16,76,38,24,39,19,35,34,35,49,54,52,48,0,-6,-36,-15,-39,0,-18,-27,-32,-32,-30,0,0,0,-22,-29,-16,-20,-41,-21,-40,0,0,64,63,65,61,69,75,81,81,68,62,62,59,112,91,91,56,56,56,120,110,145,0,0,0,124,0,0]} 1. d4 {[%emt 0:01:00]} g6 {[%emt 0:01:00]} 2. Nf3 {[%emt 0:00:00]} Bg7 {[%emt 0:00:30]} 3. g3 {[%emt 0:00:00]} Nf6 {[%emt 0:00:30]} 4. Bg2 {[%emt 0:00:30]} O-O {[%emt 0:00:00]} 5. O-O {[%emt 0:00:30]} d6 {[%emt 0:00:00]} 6. c4 {[%emt 0:00:30]} Nc6 {[%emt 0:03:30]} 7. Nc3 {[%emt 0:00:30]} a6 {[%emt 0:00:00]} 8. b3 $1 {[%emt 0:03:30][%mdl 4] is more profitable than 8.h3 at the moment.} Rb8 {[%emt 0:02:00]} 9. d5 {[%emt 0:02:30]} Na5 {[%emt 0:00:00] E63: King's Indian: Fianchetto: Panno Variation with 7...a6.} 10. Bg5 {[%emt 0:00:30]} c5 {[%emt 0:06:00]} 11. dxc6 $1 {[%emt 0:00:30]} Nxc6 {[%emt 0:03:30] White is slightly better.} 12. Rc1 {[%emt 0:04:30]} Bd7 {[%emt 0:01:30]} 13. h3 {[%emt 0:20:30]} b5 {[%emt 0:10:30] [#]} 14. Nd2 $146 {[%emt 0:05:30]} (14. Nd5 $14) ({Predecessor:} 14. cxb5 axb5 15. Nd4 Nxd4 16. Qxd4 Qa5 17. Qd2 Rfe8 18. Rfd1 b4 19. Bxf6 Bxf6 20. Nd5 {0-1 (47) Havaskori,L (2092)-Csolig,R (2142) Hungary 2008}) 14... b4 {[%emt 0:13:30]} 15. Na4 {[%emt 0:08:30]} Nd4 {[%emt 0:03:30]} 16. Be3 {[%emt 0:05:30]} Ne8 {[%emt 0:13:30]} (16... Nf5 $5 {[%cal Rf5e3]} 17. Ba7 Bxa4 18. Bxb8 Bd7 $11) 17. Nb1 {[%emt 0:09:30]} e5 {[%emt 0:04:30]} 18. Nd2 {[%emt 0:06:30]} Nc7 {[%emt 0:07:30]} 19. c5 $1 {[%emt 0:13:03]} Bxa4 {[%emt 0:02:30]} 20. bxa4 {[%emt 0:00:04]} dxc5 {[%emt 0:00:00]} 21. Nb3 {[%emt 0:03:51]} Nd5 {[%emt 0:07:00]} 22. Bxd5 {[%emt 0:00:10]} Qxd5 {[%emt 0:00:30]} 23. Rxc5 {[%emt 0:00:07]} Qe6 {[%emt 0:01:32]} 24. Qd3 {[%emt 0:04:45]} Nf5 {[%emt 0:11:36]} (24... Qxh3 {keeps more tension.} 25. Nxd4 Rbd8 26. Rfc1 h5) 25. Qc4 {[%emt 0:01:48]} Nxe3 {[%emt 0:02:11]} (25... Qd7 $11) 26. Qxe6 $14 {[%emt 0:00:06]} fxe6 {[%emt 0:00:02]} 27. fxe3 {[%emt 0:00:03]} e4 {[%emt 0:02:11]} 28. Rxf8+ {[%emt 0:03:17]} (28. Rf4 {feels hotter.} Rbd8 29. Kg2 Rd1 30. Rc6) 28... Rxf8 {[%emt 0:00:59][%mdl 4096] Endgame KRB-KRN} 29. Rc4 {[%emt 0:00:24]} Bc3 {[%emt 0:01:06]} 30. Rxe4 {[%emt 0:00:07]} e5 {[%emt 0:01:50]} 31. Nc5 {[%emt 0:00:28]} Kf7 {[%emt 0:00:22]} (31... a5 $14) 32. Nxa6 {[%emt 0:01:41]} Ra8 {[%emt 0:00:58]} 33. Nc5 {[%emt 0:00:00] Threatens to win with Rc4.} Ke7 $1 {[%emt 0:00:20]} 34. Rh4 $1 {[%emt 0:00:56]} Kd6 {[%emt 0:01:03] [#]} ({Black should play} 34... h5 $1 $14) 35. Ne4+ $1 $16 {[%emt 0:01:52]} Kd5 {[%emt 0:00:05]} 36. Nf6+ {[%emt 0:02:09]} Ke6 {[%emt 0:00:12]} 37. Ne4 {[%emt 0:00:53]} Kd5 $1 {[%emt 0:00:03] [#]} 38. Nf6+ {[%emt 0:02:19]} ({White must play} 38. a3 $1 $16) 38... Ke6 {[%emt 0:00:02] Weighted Error Value: White=0.15 (very precise) /Black=0.15 (very precise)} 1/2-1/2

[Event "Frauenbundesliga 2021-22"]
[Site "Germany"]
[Date "2022.04.10"]
[Round "8.2"]
[White "Rogule, Laura"]
[Black "Stefanova, Antoaneta"]
[Result "1/2-1/2"]
[ECO "A11"]
[WhiteElo "2317"]
[BlackElo "2445"]
[Annotator "NA RC"]
[PlyCount "99"]
[EventDate "2021.11.26"]
[EventType "team-tourn"]
[EventCountry "GER"]
[SourceTitle "playchess.com"]
[Source "ChessBase"]
[SourceQuality "1"]
[WhiteTeam "LOE"]
[BlackTeam "BAD"]
[WhiteTeamCountry "LAT"]
[BlackTeamCountry "BUL"]
[TimeControl "40/5400+30:1800+30"]

1. c4 {[%emt 0:01:00]} c6 {[%emt 0:01:00]} 2. Nf3 {[%emt 0:00:00]} d5 {[%emt 0:00:00]} 3. e3 {[%emt 0:01:00]} e6 {[%emt 0:03:00]} 4. b3 {[%emt 0:01:30]} Nd7 {[%emt 0:08:30]} 5. Bb2 {[%emt 0:00:30]} f5 {[%emt 0:00:30]} 6. Qc2 {[%emt 0:16:30]} Ngf6 {[%emt 0:02:30]} 7. Nc3 {[%emt 0:03:30]} Nc5 {[%emt 0:06:30]} 8. d3 {[%emt 0:11:30]} a5 {[%emt 0:02:30]} 9. Be2 {[%emt 0:02:30]} Bd6 {[%emt 0:04:30]} 10. Rd1 {[%emt 0:03:30]} O-O {[%emt 0:03:30]} 11. O-O $14 {[%emt 0:01:30]} Bd7 {[%emt 0:06:30]} 12. Ba3 {[%emt 0:07:30]} Be8 {[%emt 0:07:30]} 13. Nd4 {[%emt 0:08:30]} Qe7 {[%emt 0:06:30]} 14. cxd5 {[%emt 0:06:30]} Nxd5 {[%emt 0:00:30]} 15. Nxd5 {[%emt 0:03:30]} exd5 {[%emt 0:02:30]} 16. Bxc5 {[%emt 0:06:30]} Bxc5 {[%emt 0:00:30]} 17. Nxf5 {[%emt 0:01:30]} Rxf5 {[%emt 0:02:30]} 18. d4 {[%emt 0:00:00]} Rg5 {[%emt 0:03:30]} 19. dxc5 {[%emt 0:03:13]} Bg6 {[%emt 0:03:30]} 20. Qc3 {[%emt 0:03:11]} Be4 {[%emt 0:03:30]} 21. f3 {[%emt 0:02:24]} Bf5 {[%emt 0:00:30]} 22. Rfe1 {[%emt 0:01:08]} Rg6 {[%emt 0:02:30]} 23. e4 {[%emt 0:06:18]} Qg5 {[%emt 0:14:47]} 24. Bf1 {[%emt 0:00:54]} dxe4 {[%emt 0:00:20]} 25. fxe4 {[%emt 0:00:46]} Be6 {[%emt 0:00:15]} 26. g3 {[%emt 0:06:07]} h5 {[%emt 0:01:06]} 27. Rd6 {[%emt 0:00:52]} h4 {[%emt 0:02:21]} 28. Rxe6 {[%emt 0:01:35]} Rxe6 {[%emt 0:00:12]} 29. Bc4 {[%emt 0:00:40]} Qxc5+ {[%emt 0:06:36]} 30. Re3 {[%emt 0:00:22]} Qe7 {[%emt 0:01:37]} 31. Qe5 {[%emt 0:00:37]} Re8 {[%emt 0:00:17]} 32. Qxa5 {[%emt 0:00:43]} b5 {[%emt 0:02:38]} 33. Bxe6+ {[%emt 0:00:14]} Qxe6 {[%emt 0:00:01]} 34. Qd2 {[%emt 0:00:47]} Qe5 {[%emt 0:01:01]} 35. gxh4 {[%emt 0:00:27]} Rf8 {[%emt 0:00:39]} 36. Re1 {[%emt 0:00:26]} Rf4 {[%emt 0:01:20]} 37. Kh1 {[%emt 0:00:36]} Kh7 {[%emt 0:01:08]} 38. Qg2 {[%emt 0:00:33]} Rxh4 {[%emt 0:00:42]} 39. a4 {[%emt 0:00:25]} bxa4 {[%emt 0:01:12]} 40. bxa4 {[%emt 0:00:01]} Kh6 {[%emt 0:00:00]} 41. Qc2 {[%emt 0:21:27]} g6 {[%emt 0:05:18]} 42. Qd2+ {[%emt 0:03:30]} Kh5 {[%emt 0:02:30]} 43. Qf2 {[%emt 0:02:15]} Rf4 {[%emt 0:04:30]} 44. Qg2 {[%emt 0:02:45]} g5 {[%emt 0:01:30]} 45. Qh3+ {[%emt 0:01:25]} Kg6 {[%emt 0:07:06]} 46. Qg2 {[%emt 0:00:11]} Qa5 {[%emt 0:03:51]} 47. Rg1 {[%emt 0:01:01]} Qe5 {[%emt 0:00:27]} 48. Re1 {[%emt 0:01:43]} Qa5 {[%emt 0:00:06]} 49. Rg1 {[%emt 0:00:42]} Qe5 {[%emt 0:00:27]} 50. Re1 {[%emt 0:00:28]} 1/2-1/2

[Event "Frauenbundesliga 2021-22"]
[Site "Germany"]
[Date "2022.04.10"]
[Round "8.3"]
[White "Arakhamia-Grant, Ketevan"]
[Black "Berzina, Ilze"]
[Result "1-0"]
[ECO "B17"]
[WhiteElo "2354"]
[BlackElo "2192"]
[Annotator "NA RC"]
[PlyCount "89"]
[EventDate "2021.11.26"]
[EventType "team-tourn"]
[EventCountry "GER"]
[SourceTitle "playchess.com"]
[Source "ChessBase"]
[SourceQuality "1"]
[WhiteTeam "BAD"]
[BlackTeam "LOE"]
[WhiteTeamCountry "SCO"]
[BlackTeamCountry "LAT"]
[TimeControl "40/5400+30:1800+30"]

1. e4 {[%emt 0:01:00]} c6 {[%emt 0:01:00]} 2. d4 {[%emt 0:00:00]} d5 {[%emt 0:00:30]} 3. Nd2 {[%emt 0:00:00]} dxe4 {[%emt 0:00:00]} 4. Nxe4 {[%emt 0:00:30]} Nd7 {[%emt 0:00:00]} 5. Ng5 {[%emt 0:00:30]} Ngf6 {[%emt 0:00:30]} 6. Bd3 {[%emt 0:00:00]} e6 {[%emt 0:00:30]} 7. N1f3 {[%emt 0:00:00]} Bd6 {[%emt 0:00:30]} 8. Qe2 {[%emt 0:00:30]} h6 {[%emt 0:01:30]} 9. Ne4 {[%emt 0:00:00]} Nxe4 {[%emt 0:00:00]} 10. Qxe4 {[%emt 0:00:00]} Nf6 {[%emt 0:01:00]} 11. Qe2 {[%emt 0:00:30]} Qc7 {[%emt 0:01:30]} 12. Bd2 {[%emt 0:00:00]} b6 {[%emt 0:01:30]} 13. Ne5 {[%emt 0:18:00]} Bb7 {[%emt 0:11:30]} 14. f4 {[%emt 0:00:30]} c5 {[%emt 0:02:30]} 15. dxc5 {[%emt 0:12:30]} Qxc5 {[%emt 0:01:30]} ({But not} 15... Bxc5 16. O-O-O $11) 16. O-O-O {[%emt 0:01:30]} Rc8 $14 {[%emt 0:07:30]} 17. Kb1 {[%emt 0:12:30]} O-O {[%emt 0:12:30]} 18. Rhg1 {[%emt 0:01:30]} Qd4 {[%emt 0:42:00]} 19. Be3 {[%emt 0:09:30]} Qb4 {[%emt 0:02:05]} 20. a3 {[%emt 0:05:30]} Qa5 {[%emt 0:02:11]} 21. Nc4 Rxc4 {[%emt 0:00:06]} 22. Bxc4 {[%emt 0:04:00]} Ne4 {[%emt 0:00:48]} 23. Qe1 {[%emt 0:01:30]} Qa4 {[%emt 0:00:29]} 24. Bb3 {[%emt 0:00:30]} Qc6 {[%emt 0:03:37]} 25. g4 {[%emt 0:00:30]} a5 {[%emt 0:02:55]} 26. a4 {[%emt 0:03:30]} Bb4 {[%emt 0:00:11]} 27. Qe2 {[%emt 0:05:30]} Bc5 {[%emt 0:01:00]} 28. f5 {[%emt 0:00:30]} Ba6 {[%emt 0:02:11]} 29. Qxa6 {[%emt 0:00:30]} Bxe3 {[%emt 0:00:32]} 30. Rge1 {[%emt 0:04:30]} Nf2 {[%emt 0:00:50]} 31. fxe6 {[%emt 0:00:30]} Nxd1 {[%emt 0:00:22]} 32. exf7+ {[%emt 0:00:30]} Kh8 {[%emt 0:00:17]} 33. Rxd1 {[%emt 0:01:51]} Qf3 {[%emt 0:01:00]} 34. Re1 {[%emt 0:04:06]} Qxg4 {[%emt 0:00:07]} 35. Ka2 {[%emt 0:00:19]} Bc5 {[%emt 0:00:51]} 36. Re8 {[%emt 0:03:13]} Qg6 {[%emt 0:01:49]} 37. Qc8 {[%emt 0:00:08]} Qd6 {[%emt 0:00:40]} 38. Qf5 {[%emt 0:01:15]} Qc6 {[%emt 0:00:49]} 39. Qe5 {[%emt 0:04:02]} Qd6 {[%emt 0:00:31]} 40. Qh5 {[%emt 0:00:00]} Qd4 {[%emt 0:00:00]} 41. c3 {[%emt 0:08:36]} Qf2 {[%emt 0:11:39]} 42. Qg6 {[%emt 0:02:30]} Qf6 {[%emt 0:00:30]} 43. Bc2 {[%emt 0:00:30]} Qxg6 {[%emt 0:01:30]} 44. Bxg6 {[%emt 0:00:30]} Bd6 {[%emt 0:00:30]} 45. Kb3 {[%emt 0:00:30]} 1-0

[Event "Frauenbundesliga 2021-22"]
[Site "Germany"]
[Date "2022.04.10"]
[Round "8.4"]
[White "Otikova, Elina"]
[Black "Heinemann, Josefine"]
[Result "0-1"]
[ECO "B92"]
[WhiteElo "2105"]
[BlackElo "2290"]
[Annotator "NA RC"]
[PlyCount "86"]
[EventDate "2021.11.26"]
[EventType "team-tourn"]
[EventCountry "GER"]
[SourceTitle "playchess.com"]
[Source "ChessBase"]
[SourceQuality "1"]
[WhiteTeam "LOE"]
[BlackTeam "BAD"]
[WhiteTeamCountry "LAT"]
[BlackTeamCountry "GER"]
[TimeControl "40/5400+30:1800+30"]

1. e4 {[%emt 0:01:00]} c5 {[%emt 0:01:00]} 2. Nf3 {[%emt 0:00:00]} d6 {[%emt 0:00:00]} 3. d4 {[%emt 0:00:00]} cxd4 {[%emt 0:00:00]} 4. Nxd4 {[%emt 0:00:00]} Nf6 {[%emt 0:00:00]} 5. Nc3 {[%emt 0:00:00]} a6 {[%emt 0:00:00]} 6. Be2 {[%emt 0:00:30]} e5 {[%emt 0:00:30]} 7. Nb3 {[%emt 0:03:30]} Be7 {[%emt 0:00:30]} 8. O-O {[%emt 0:00:30]} O-O {[%emt 0:00:30]} 9. Re1 {[%emt 0:03:30]} Be6 {[%emt 0:01:30]} 10. Bf1 {[%emt 0:00:30]} Nbd7 {[%emt 0:02:30]} 11. h3 {[%emt 0:06:30]} b5 {[%emt 0:05:30]} 12. Bg5 {[%emt 0:07:30]} Qc7 {[%emt 0:07:30]} 13. Bxf6 {[%emt 0:13:30]} Nxf6 {[%emt 0:00:30]} 14. Nd5 {[%emt 0:03:30]} Bxd5 {[%emt 0:04:30]} 15. exd5 {[%emt 0:00:00]} Rac8 {[%emt 0:00:30]} 16. c4 {[%emt 0:04:00]} ({White should try} 16. c3 $11) 16... bxc4 {[%emt 0:05:30]} 17. Rc1 $15 {[%emt 0:00:30]} Qb7 {[%emt 0:03:30]} 18. Bxc4 {[%emt 0:00:30]} Bd8 {[%emt 0:01:30]} 19. Qe2 {[%emt 0:07:30]} Ra8 {[%emt 0:01:30]} 20. Rc3 {[%emt 0:07:30]} a5 {[%emt 0:08:30]} 21. a4 {[%emt 0:07:30]} Qb4 {[%emt 0:06:30]} 22. Ra1 {[%emt 0:11:30]} Bb6 {[%emt 0:08:30]} 23. Nc1 {[%emt 0:07:35]} Bd4 {[%emt 0:00:30]} 24. Rb3 {[%emt 0:01:40]} Qc5 {[%emt 0:00:30]} 25. Rb5 {[%emt 0:00:19]} Bxf2+ {[%emt 0:04:30]} 26. Kf1 {[%emt 0:03:44]} Qd4 {[%emt 0:01:30]} 27. Qxf2 {[%emt 0:07:58]} Qxc4+ {[%emt 0:00:30]} 28. Qe2 {[%emt 0:00:50]} Qf4+ {[%emt 0:04:30]} 29. Qf2 {[%emt 0:00:26]} Qg5 {[%emt 0:00:30]} 30. Nb3 {[%emt 0:00:45]} Rfc8 {[%emt 0:01:30]} 31. Re1 {[%emt 0:01:13]} Rc4 {[%emt 0:02:30]} 32. Kg1 {[%emt 0:00:05]} h6 {[%emt 0:03:30]} 33. Nxa5 {[%emt 0:00:47]} Rxa4 {[%emt 0:00:30]} 34. Nb7 {[%emt 0:00:31]} Ne4 {[%emt 0:08:23]} 35. Rxe4 {[%emt 0:00:23]} Rxe4 {[%emt 0:00:10]} 36. Nxd6 {[%emt 0:00:15]} Rf4 {[%emt 0:02:32]} 37. Qe1 {[%emt 0:00:27]} Rfa4 {[%emt 0:03:18]} 38. Qf2 {[%emt 0:00:48]} Ra1+ {[%emt 0:01:51]} 39. Kh2 {[%emt 0:00:04]} Qf4+ {[%emt 0:00:40]} 40. Qxf4 {[%emt 0:00:05]} exf4 {[%emt 0:00:00]} 41. Nf5 {[%emt 0:08:35]} Rf1 {[%emt 0:03:06]} 42. g3 {[%emt 0:06:17]} Rf2+ {[%emt 0:00:30]} 43. Kg1 {[%emt 0:00:05]} Rd2 {[%emt 0:00:30]} 0-1

[Event "Frauenbundesliga 2021-22"]
[Site "Germany"]
[Date "2022.04.10"]
[Round "8.5"]
[White "Kachiani-Gersinska, Ketino"]
[Black "Naumann, Nadine"]
[Result "1/2-1/2"]
[ECO "E04"]
[WhiteElo "2295"]
[BlackElo "1960"]
[Annotator "NA RC"]
[PlyCount "58"]
[EventDate "2021.11.26"]
[EventType "team-tourn"]
[EventCountry "GER"]
[SourceTitle "playchess.com"]
[Source "ChessBase"]
[SourceQuality "1"]
[WhiteTeam "BAD"]
[BlackTeam "LOE"]
[WhiteTeamCountry "GER"]
[BlackTeamCountry "GER"]
[TimeControl "40/5400+30:1800+30"]

1. d4 {[%emt 0:01:00]} d5 {[%emt 0:01:00]} 2. c4 {[%emt 0:00:00]} e6 {[%emt 0:00:30]} 3. Nf3 {[%emt 0:00:00]} Nf6 {[%emt 0:00:00]} 4. g3 {[%emt 0:00:00]} dxc4 {[%emt 0:01:00]} 5. Bg2 {[%emt 0:00:00]} c5 {[%emt 0:00:30]} 6. O-O {[%emt 0:04:30]} Nc6 {[%emt 0:02:30]} 7. Ne5 {[%emt 0:01:30]} Bd7 {[%emt 0:00:30]} 8. Na3 {[%emt 0:00:30]} cxd4 {[%emt 0:04:30]} 9. Naxc4 {[%emt 0:01:30]} Be7 {[%emt 0:02:30]} 10. Bf4 {[%emt 0:09:30]} O-O {[%emt 0:04:30]} 11. Qb3 {[%emt 0:18:30]} Qc8 $14 {[%emt 0:01:30]} 12. Rac1 {[%emt 0:22:30]} Nd5 {[%emt 0:44:30]} 13. Rfd1 {[%emt 0:13:30]} Nxf4 {[%emt 0:08:30]} 14. gxf4 {[%emt 0:00:30]} Rd8 {[%emt 0:01:30]} 15. Nxc6 {[%emt 0:02:30]} Bxc6 {[%emt 0:03:30]} 16. Ne5 {[%emt 0:00:30]} Qc7 {[%emt 0:07:05]} 17. Bxc6 {[%emt 0:02:30]} bxc6 {[%emt 0:00:10]} 18. Rxc6 {[%emt 0:00:00]} Qa5 {[%emt 0:01:37]} 19. Rxe6 {[%emt 0:01:00]} Rab8 {[%emt 0:04:21]} 20. Qh3 {[%emt 0:11:22]} Bf6 {[%emt 0:03:11]} 21. Nc6 {[%emt 0:03:44]} Qxa2 {[%emt 0:00:20]} 22. Rxf6 {[%emt 0:04:16]} gxf6 {[%emt 0:00:10]} 23. Rd3 {[%emt 0:01:22]} Qb1+ {[%emt 0:02:45]} 24. Kg2 {[%emt 0:00:25]} Kh8 {[%emt 0:00:44]} 25. Nxb8 {[%emt 0:00:50]} Rxb8 {[%emt 0:00:21]} 26. Rg3 {[%emt 0:00:46]} Qe4+ {[%emt 0:00:37]} 27. Kf1 {[%emt 0:00:23]} Qb1+ {[%emt 0:00:30]} 28. Kg2 {[%emt 0:00:09]} Qe4+ {[%emt 0:00:36]} 29. Kf1 {[%emt 0:00:33]} Qb1+ {[%emt 0:00:56]} 1/2-1/2

[Event "Frauenbundesliga 2021-22"]
[Site "Germany"]
[Date "2022.04.10"]
[Round "8.6"]
[White "Schuster, Rebekka"]
[Black "Tammert, Iamze"]
[Result "0-1"]
[ECO "B20"]
[WhiteElo "1840"]
[BlackElo "2299"]
[Annotator "NA RC"]
[PlyCount "80"]
[EventDate "2021.11.26"]
[EventType "team-tourn"]
[EventCountry "GER"]
[SourceTitle "playchess.com"]
[Source "ChessBase"]
[SourceQuality "1"]
[WhiteTeam "LOE"]
[BlackTeam "BAD"]
[WhiteTeamCountry "GER"]
[BlackTeamCountry "GER"]
[TimeControl "40/5400+30:1800+30"]

1. e4 {[%emt 0:01:00]} c5 {[%emt 0:01:00]} 2. Nf3 {[%emt 0:00:00]} Nf6 {[%emt 0:00:30]} 3. Nc3 {[%emt 0:00:00]} d5 {[%emt 0:00:30]} 4. exd5 {[%emt 0:06:30]} Nxd5 {[%emt 0:00:30]} 5. Nxd5 {[%emt 0:02:30]} Qxd5 {[%emt 0:00:00]} 6. d4 {[%emt 0:09:30]} cxd4 {[%emt 0:11:00]} 7. Qxd4 {[%emt 0:02:30]} Qxd4 {[%emt 0:00:30]} 8. Nxd4 {[%emt 0:00:30]} a6 {[%emt 0:00:30]} 9. Bf4 {[%emt 0:05:30]} Bd7 {[%emt 0:16:30]} 10. O-O-O {[%emt 0:02:30]} Nc6 {[%emt 0:02:30]} 11. Bg3 {[%emt 0:08:30]} e6 $11 {[%emt 0:01:30]} 12. Be2 {[%emt 0:57:30]} Nxd4 {[%emt 0:07:30]} 13. Rxd4 {[%emt 0:00:00]} Bc6 {[%emt 0:00:00]} 14. f3 {[%emt 0:00:00]} Bc5 {[%emt 0:03:00]} 15. Rdd1 {[%emt 0:00:00]} Ke7 {[%emt 0:02:30]} 16. Rhe1 {[%emt 0:00:00]} h6 {[%emt 0:00:30]} 17. Bc4 {[%emt 0:00:00]} Rhd8 {[%emt 0:03:30]} 18. Bc7 {[%emt 0:00:00]} Rxd1+ {[%emt 0:00:30]} 19. Rxd1 {[%emt 0:00:00]} Rc8 {[%emt 0:00:30]} 20. Bg3 {[%emt 0:00:00]} Bxf3 {[%emt 0:11:30]} 21. Bxe6 {[%emt 0:00:00]} Be3+ {[%emt 0:03:30]} 22. Kb1 {[%emt 0:00:00]} Rc6 {[%emt 0:00:00]} 23. gxf3 {[%emt 0:00:00]} Rxe6 {[%emt 0:00:00]} 24. c4 {[%emt 0:00:12]} g5 {[%emt 0:04:30]} 25. Kc2 {[%emt 0:01:50]} Bc5 {[%emt 0:06:30]} 26. Re1 {[%emt 0:01:13]} Rxe1 {[%emt 0:07:37]} 27. Bxe1 {[%emt 0:00:03]} f5 {[%emt 0:02:02]} 28. Kd3 {[%emt 0:00:18]} Ke6 {[%emt 0:01:50]} 29. Bc3 {[%emt 0:01:06]} g4 {[%emt 0:01:08]} 30. fxg4 {[%emt 0:00:08]} fxg4 {[%emt 0:00:00]} 31. Ke4 {[%emt 0:00:10]} Bd6 {[%emt 0:00:07]} 32. Bd2 {[%emt 0:00:23]} Bxh2 {[%emt 0:02:56]} 33. Bxh6 {[%emt 0:00:03]} Be5 {[%emt 0:01:20]} 34. b4 {[%emt 0:01:19]} g3 {[%emt 0:00:53]} 35. Kf3 {[%emt 0:01:31]} b5 {[%emt 0:00:20]} 36. cxb5 {[%emt 0:01:18]} axb5 {[%emt 0:00:01]} 37. Bd2 {[%emt 0:00:08]} Kd5 {[%emt 0:00:09]} 38. Be1 {[%emt 0:01:49]} Kc4 {[%emt 0:00:11]} 39. Bxg3 {[%emt 0:00:56]} Bxg3 {[%emt 0:00:08]} 40. Kxg3 {[%emt 0:00:04]} Kxb4 {[%emt 0:00:00]} 0-1

[Event "Frauenbundesliga 2021-22"]
[Site "Germany"]
[Date "2022.04.10"]
[Round "8.7"]
[White "Klek, Hanna Marie"]
[Black "Cyfka, Karina"]
[Result "1/2-1/2"]
[ECO "C43"]
[WhiteElo "2314"]
[BlackElo "2401"]
[Annotator "NA RC"]
[PlyCount "151"]
[EventDate "2021.11.26"]
[EventType "team-tourn"]
[EventCountry "GER"]
[SourceTitle "playchess.com"]
[Source "ChessBase"]
[SourceQuality "1"]
[WhiteTeam "DEI"]
[BlackTeam "LEI"]
[WhiteTeamCountry "GER"]
[BlackTeamCountry "POL"]
[TimeControl "40/5400+30:1800+30"]

1. e4 {[%emt 0:01:00]} e5 {[%emt 0:01:00]} 2. Nf3 {[%emt 0:00:00]} Nf6 {[%emt 0:00:00]} 3. d4 {[%emt 0:02:00]} Nxe4 {[%emt 0:00:00]} 4. Bd3 {[%emt 0:00:30]} d5 {[%emt 0:00:30]} 5. dxe5 {[%emt 0:00:30]} Nc5 {[%emt 0:03:30]} 6. Be2 {[%emt 0:00:30]} Be7 {[%emt 0:01:30]} 7. O-O {[%emt 0:00:00]} O-O {[%emt 0:02:30]} 8. Be3 {[%emt 0:02:00]} Nc6 {[%emt 0:02:30]} 9. h3 {[%emt 0:11:30]} a6 {[%emt 0:05:30]} 10. Qc1 {[%emt 0:05:30]} Be6 {[%emt 0:11:30]} 11. Rd1 {[%emt 0:00:30]} Qc8 {[%emt 0:06:30]} 12. Nc3 {[%emt 0:01:30]} Rd8 $1 {[%emt 0:00:30]} 13. Bf1 {[%emt 0:03:30]} Ne4 {[%emt 0:05:30]} 14. Ne2 $11 {[%emt 0:01:30]} f6 {[%emt 0:17:30]} 15. exf6 {[%emt 0:03:30]} Bxf6 {[%emt 0:00:30]} 16. c3 {[%emt 0:02:30]} Bf7 {[%emt 0:05:30]} 17. Nf4 {[%emt 0:05:30]} Kh8 {[%emt 0:06:30]} 18. Qc2 {[%emt 0:04:30]} Ne5 {[%emt 0:08:30]} 19. Nxe5 {[%emt 0:05:30]} Bxe5 {[%emt 0:00:30]} 20. Bd3 {[%emt 0:05:30]} Nf6 {[%emt 0:02:27]} 21. Bf5 {[%emt 0:01:30]} Qb8 {[%emt 0:00:13]} 22. Nd3 {[%emt 0:02:30]} Bd6 {[%emt 0:00:31]} 23. Bd4 {[%emt 0:01:30]} c6 {[%emt 0:03:32]} 24. Qd2 {[%emt 0:04:30]} Bg8 {[%emt 0:01:44]} 25. Qg5 {[%emt 0:02:30]} Rf8 {[%emt 0:01:02]} 26. Nc5 {[%emt 0:05:30]} Bf4 {[%emt 0:06:56]} 27. Qh4 {[%emt 0:00:30]} Be5 {[%emt 0:02:41]} 28. Re1 {[%emt 0:03:30]} Bxd4 {[%emt 0:00:13]} 29. cxd4 {[%emt 0:00:30]} Qc7 {[%emt 0:00:46]} 30. Nd3 {[%emt 0:03:30]} Bf7 {[%emt 0:03:11]} 31. Ne5 {[%emt 0:01:30]} Be8 {[%emt 0:00:24]} 32. Rac1 {[%emt 0:02:46]} Nh5 {[%emt 0:01:17]} 33. g4 {[%emt 0:06:04]} Qd8 {[%emt 0:00:37]} 34. Qxd8 {[%emt 0:02:16]} Rxd8 {[%emt 0:00:01]} 35. Nd3 {[%emt 0:03:50]} g6 {[%emt 0:00:14]} 36. gxh5 {[%emt 0:01:16]} gxf5 {[%emt 0:01:42]} 37. Re7 {[%emt 0:02:28]} f4 {[%emt 0:00:42]} 38. Rxb7 {[%emt 0:01:03]} Bxh5 {[%emt 0:00:42]} 39. Ne5 {[%emt 0:01:08]} Rb8 {[%emt 0:00:26]} 40. Rxb8 {[%emt 0:01:00]} Rxb8 {[%emt 0:00:01]} 41. b3 {[%emt 0:02:09]} Rg8+ {[%emt 0:12:04]} 42. Kf1 {[%emt 0:02:30]} Be8 {[%emt 0:01:06]} 43. Rc5 {[%emt 0:08:30]} Kg7 {[%emt 0:01:03]} 44. Ra5 {[%emt 0:02:30]} Kf6 {[%emt 0:02:04]} 45. Rxa6 {[%emt 0:03:02]} Kf5 {[%emt 0:00:20]} 46. Ng4 {[%emt 0:01:22]} Rg7 {[%emt 0:03:31]} 47. Ra8 {[%emt 0:00:47]} Re7 {[%emt 0:00:41]} 48. f3 {[%emt 0:03:58]} h5 {[%emt 0:06:47]} 49. Nf2 {[%emt 0:00:51]} c5 {[%emt 0:02:01]} 50. Ra5 {[%emt 0:00:24]} Kg5 {[%emt 0:02:32]} 51. Rxc5 {[%emt 0:01:56]} Kh4 {[%emt 0:00:18]} 52. Rxd5 {[%emt 0:02:25]} Ra7 {[%emt 0:01:24]} 53. a4 {[%emt 0:03:22]} Rb7 {[%emt 0:01:12]} 54. Rd8 {[%emt 0:01:42]} Bf7 {[%emt 0:00:29]} 55. Rf8 {[%emt 0:00:40]} Bxb3 {[%emt 0:00:52]} 56. Kg2 {[%emt 0:01:58]} Bxa4 {[%emt 0:01:01]} 57. Rxf4+ {[%emt 0:00:30]} Kg5 {[%emt 0:00:03]} 58. Re4 {[%emt 0:00:25]} h4 {[%emt 0:00:40]} 59. d5 {[%emt 0:00:29]} Bc2 {[%emt 0:00:29]} 60. Rd4 {[%emt 0:00:38]} Bf5 {[%emt 0:00:21]} 61. f4+ {[%emt 0:01:04]} Kg6 {[%emt 0:00:49]} 62. d6 {[%emt 0:00:41]} Bd7 {[%emt 0:01:04]} 63. Nd3 {[%emt 0:00:22]} Kf5 {[%emt 0:01:07]} 64. Kf3 {[%emt 0:01:03]} Bc6+ {[%emt 0:00:24]} 65. Ke3 {[%emt 0:00:06]} Rg7 {[%emt 0:00:08]} 66. Nf2 {[%emt 0:01:25]} Rg3+ {[%emt 0:00:16]} 67. Ke2 {[%emt 0:00:15]} Bd7 {[%emt 0:00:33]} 68. Kd2 {[%emt 0:00:39]} Rf3 {[%emt 0:00:44]} 69. Nd3 {[%emt 0:00:25]} Rxh3 {[%emt 0:00:13]} 70. Nc5 {[%emt 0:00:07]} Bc6 {[%emt 0:00:31]} 71. d7 {[%emt 0:00:38]} Bxd7 {[%emt 0:00:18]} 72. Nxd7 {[%emt 0:00:08]} Rf3 {[%emt 0:00:01]} 73. Ne5 {[%emt 0:00:06]} Rxf4 {[%emt 0:00:12]} 74. Rxf4+ {[%emt 0:00:04]} Kxf4 {[%emt 0:00:02]} 75. Ng6+ {[%emt 0:00:05]} Kg3 {[%emt 0:00:03]} 76. Nxh4 {[%emt 0:00:05]} 1/2-1/2